fUST/lending_fUST_20260219
["ID","MTS","AMOUNT","RATE_DAILY","PERIOD"]
[405947878,1771436710918,-1000.0,0.00036536,30]
[405947879,1771436710949,-1000.0,0.00036536,30]
[405947880,1771436710981,-1000.0,0.00036536,30]
[405947881,1771436711013,-244.43,0.000368,30]
[405947882,1771436711047,-1991.3,0.00036986,120]
[405947883,1771436711077,-3382.12,0.000372,120]
[405947884,1771436711106,-3382.12,0.000381,120]
[405947885,1771436711135,-1991.3,0.00038356,120]
[405947886,1771436711162,-3382.12,0.00039,120]
[405947887,1771436711189,-244.43,0.000391,30]
[405947888,1771436711216,-1991.3,0.00039726,120]
[405947889,1771436711241,-3382.12,0.000399,120]
[405947890,1771436711268,-259.58618645,0.00039999,120]
[405947891,1771436711295,-185.07650765,0.00039999,31]
[405947892,1771436711322,-280.63601299,0.00039999,31]
[405947893,1771436711506,-502.24103888,0.00039999,31]
[405947894,1771436711541,-623.41217107,0.00039999,31]
[405947895,1771436711567,-2398451.11845768,0.0004,120]
[405947896,1771436711594,-1536816.96962528,0.0004,120]
[405947897,1771436717443,-500.0,0.00039999,120]
[405947898,1771436717476,-333.05767391,0.00039999,120]
[405947899,1771436717504,-679205.42684003,0.0004,120]
[405947900,1771436717530,-500.0,0.0004,120]
[405947901,1771436717556,-205325.67670171,0.0004,120]
[405947902,1771436717583,-111863.74820811,0.0004,120]
[405947903,1771436717610,-5061.7180466,0.0004,120]
[405947904,1771436717635,-321.41866232,0.0004,30]
[405947905,1771436717661,-29148.79145749,0.0004,120]
[405947906,1771436717686,-733.95439572,0.0004,120]
[405947907,1771436717711,-200.0,0.0004,120]
[405947908,1771436717736,-969.0,0.0004,120]
[405947909,1771436717762,-411.93782346,0.0004,30]
[405947910,1771436717788,-196.38071458,0.0004,120]
[405947911,1771436717813,-1323.0,0.0004,120]
[405947912,1771436717837,-100000.0,0.0004,30]
[405947913,1771436717864,-162.90218166,0.0004,120]
[405947914,1771436717890,-726454.93996659,0.0004,120]
[405947915,1771436717915,-510.43251583,0.0004,120]
[405947916,1771436717941,-151.0,0.0004,120]
[405947917,1771436717967,-51012.85993648,0.0004,120]
[405947918,1771436717993,-825769.2247496,0.0004,120]
[405947919,1771436718018,-248.76702082,0.0004,120]
[405947920,1771436718044,-1095.97,0.0004,120]
[405947921,1771436718069,-24000.0,0.0004,60]
[405947922,1771436718094,-6075.88,0.0004,120]
[405947923,1771436718120,-1022.11,0.0004,120]
[405947924,1771436718146,-2000.0,0.0004,120]
[405947925,1771436718170,-7391.66,0.0004,30]
[405947926,1771436718198,-208.58,0.0004,30]
[405947927,1771436718223,-4655.16,0.0004,30]
[405947928,1771436718247,-1822.67,0.0004,30]
[405947929,1771436718271,-195.83,0.0004,30]
[405947930,1771436718297,-163.99,0.00040001,120]
[405947931,1771436718324,-152.59,0.00040026,120]
[405947932,1771436718350,-153.18,0.00040075,120]
[405947933,1771436718378,-163.99424304,0.00040101,120]
[405947934,1771436718405,-152.59,0.00040126,120]
[405947935,1771436718431,-153.18,0.00040175,120]
[405947936,1771436718461,-200.0,0.00040186,120]
[405947937,1771436718490,-1000.0,0.0004019,60]
[405947938,1771436718518,-265.0,0.0004019,60]
[405947939,1771436718545,-200.0,0.00040218,120]
[405947940,1771436718573,-152.59,0.00040226,120]
[405947941,1771436718600,-153.18,0.00040275,120]
[405947942,1771436718631,-200.0,0.00040315,120]
[405947943,1771436718660,-152.59,0.00040326,120]
[405947944,1771436718686,-153.18,0.00040375,120]
[405947945,1771436718713,-152.59,0.00040426,120]
[405947946,1771436718740,-153.18,0.00040475,120]
[405947947,1771436718766,-152.59,0.00040526,120]
[405947948,1771436718792,-153.18,0.00040575,120]
[405947949,1771436718818,-152.59,0.00040626,120]
[405947950,1771436718842,-1444.0,0.00040658,120]
[405947951,1771436718865,-201.0,0.0004067,44]
[405947952,1771436718891,-153.18,0.00040675,120]
[405947953,1771436718918,-230.1011667,0.000407,120]
[405947954,1771436718942,-262.60027661,0.000407,120]
[405947955,1771436718966,-1167.28424377,0.000407,120]
[405947956,1771436718990,-555.18763738,0.000407,120]
[405947957,1771436719014,-187.11633005,0.000407,120]
[405947958,1771436719041,-152.59,0.00040726,120]
[405947959,1771436719067,-153.18,0.00040775,120]
[405947960,1771436719091,-3382.12,0.000408,120]
[405947961,1771436719115,-244.43,0.000408,30]
[405947962,1771436719142,-152.59,0.00040826,120]
[405947963,1771436719168,-153.18,0.00040875,120]
[405947964,1771436719197,-152.59,0.00040926,120]
[405947965,1771436719222,-153.18,0.00040975,120]
[405947966,1771436719246,-501.05,0.00040993,120]
[405947967,1771436719271,-500.0,0.00041,120]
[405947968,1771436719294,-1000.0,0.00041,120]
[405947969,1771436719318,-1020.74324584,0.00041,120]
[405947970,1771436719343,-1073.0,0.00041,120]
[405947971,1771436719368,-500.0,0.00041,120]
[405947972,1771436719393,-1473.04374456,0.00041,120]
[405947973,1771436719418,-644.51556741,0.00041,30]
[405947974,1771436719442,-176.53123442,0.00041,120]
[405947975,1771436719555,-1692.21,0.00041,120]
[405947976,1771436719585,-195.4493912,0.00041004,30]
[405947977,1771436719614,-150.0,0.00041004,30]
[405947978,1771436719640,-150.0,0.00041004,30]
[405947979,1771436719668,-150.0,0.00041004,30]
[405947980,1771436719694,-150.0,0.00041004,30]
[405947981,1771436719727,-150.0,0.00041011,30]
[405947982,1771436719754,-150.0,0.00041011,30]
[405947983,1771436719783,-195.5509533,0.00041011,30]
[405947984,1771436719808,-195.5509533,0.00041011,30]
[405947985,1771436719832,-195.5509533,0.00041011,30]
[405947986,1771436719856,-209.1282891,0.00041011,30]
[405947987,1771436719880,-323.2486765,0.00041011,30]
[405947988,1771436719906,-152.59,0.00041026,120]
[405947989,1771436719933,-153.18,0.00041075,120]
[405947990,1771436719957,-503.19653672,0.00041095,120]
[405947991,1771436719982,-1991.3,0.00041095,120]
[405947992,1771436720007,-10000.0,0.00041096,30]
[405947993,1771436720031,-4616.85690507,0.00041096,31]
[405947994,1771436720056,-306.13,0.00041096,120]
[405947995,1771436720080,-1250.99,0.00041096,120]
[405947996,1771436720104,-50000.0,0.00041096,120]
[405947997,1771436720128,-176.97701297,0.000411,120]
[405947998,1771436720152,-210.319337,0.000411,120]
[405947999,1771436720176,-168.9353384,0.000411,120]
[405948000,1771436720200,-161.75152497,0.000411,120]
[405948001,1771436720224,-192.2140075,0.000411,120]
[405948002,1771436720248,-192.21,0.000411,120]
[405948003,1771436720271,-179.39974034,0.000411,120]
[405948004,1771436720296,-179.39974034,0.000411,120]
[405948005,1771436720319,-179.39974034,0.000411,120]
[405948006,1771436720342,-179.39974034,0.000411,120]
[405948007,1771436720366,-179.39,0.000411,120]
[405948008,1771436720391,-152.59,0.00041126,120]
[405948009,1771436720415,-151.3637726,0.00041154,60]
[405948010,1771436720442,-153.18,0.00041175,120]
[405948011,1771436720469,-4806.15606678,0.00041197,120]
[405948012,1771436720496,-152.59,0.00041226,120]
[405948013,1771436720527,-153.18,0.00041275,120]
[405948014,1771436720555,-1000.0,0.000413,30]
[405948015,1771436720584,-152.59,0.00041326,120]
[405948016,1771436720609,-200.0,0.00041345,120]
[405948017,1771436720634,-233.11,0.0004137,120]
[405948018,1771436720660,-153.18,0.00041375,120]
[405948019,1771436720685,-151.3637726,0.00041385,60]
[405948020,1771436720710,-200.0,0.00041387,120]
[405948021,1771436720737,-152.59,0.00041426,120]
[405948022,1771436720762,-151.59062765,0.00041438,60]
[405948023,1771436720786,-151.3637726,0.00041453,60]
[405948024,1771436720812,-153.18,0.00041475,120]
[405948025,1771436720836,-151.3637726,0.00041526,60]
[405948026,1771436720861,-152.59,0.00041526,120]
[405948027,1771436720885,-302.68218147,0.00041542,60]
[405948028,1771436720911,-302.63683588,0.00041573,60]
[405948029,1771436720939,-153.18,0.00041575,120]
[405948030,1771436720964,-200.0,0.00041577,120]
[405948031,1771436720989,-187.14282143,0.00041582,60]
[405948032,1771436721015,-1000.0,0.000416,30]
[405948033,1771436721039,-302.68218135,0.00041601,60]
[405948034,1771436721066,-152.59,0.00041626,120]
[405948035,1771436721092,-153.18,0.00041675,120]
[405948036,1771436721117,-151.3637726,0.00041696,60]
[405948037,1771436721143,-3382.12,0.000417,120]
[405948038,1771436721170,-152.59,0.00041726,120]
[405948039,1771436721195,-345.54,0.00041748,30]
[405948040,1771436721222,-153.18,0.00041775,120]
[405948041,1771436721246,-302.65193894,0.00041826,60]
[405948042,1771436721271,-152.59,0.00041826,120]
[405948043,1771436721296,-153.18,0.00041875,120]
[405948044,1771436721321,-1000.0,0.000419,30]
[405948045,1771436721345,-2000.0,0.000419,120]
[405948046,1771436721368,-230.1011667,0.000419,120]
[405948047,1771436721392,-262.60027661,0.000419,120]
[405948048,1771436721419,-1167.28424377,0.000419,120]
[405948049,1771436721443,-555.18763738,0.000419,120]
[405948050,1771436721470,-187.11633005,0.000419,120]
[405948051,1771436721497,-1158.88,0.00041917,30]
[405948052,1771436721522,-152.59,0.00041926,120]
[405948053,1771436721547,-150.0,0.00041965,65]
[405948054,1771436721572,-247.0,0.00041965,65]
[405948055,1771436721597,-153.18,0.00041975,120]
[405948056,1771436721622,-367.0,0.00042,120]
[405948057,1771436721647,-1000.0,0.00042,120]
[405948058,1771436721672,-200.0,0.00042,120]
[405948059,1771436721699,-1000.0,0.00042,120]
[405948060,1771436721723,-10576.0,0.00042,120]
[405948061,1771436721747,-1079907.93540361,0.00042,120]
[405948062,1771436726470,-3063466.70459639,0.00042,120]
[405948063,1771436726499,-1000.0,0.00042,50]
[405948064,1771436726628,-244.43,0.00042,30]
[405948065,1771436726656,-7391.66,0.00042,30]
[405948066,1771436726682,-208.58,0.00042,30]
[405948067,1771436726707,-1822.67,0.00042,30]
[405948068,1771436726736,-4655.16,0.00042,30]
[405948069,1771436726762,-195.83,0.00042,30]
[405948070,1771436726788,-812.0,0.00042,60]
[405948071,1771436726817,-152.59,0.00042026,120]
[405948072,1771436726845,-153.4313824,0.00042075,120]
[405948073,1771436726872,-1631.9648111,0.000421,120]
[405948074,1771436726901,-152.59,0.00042126,120]
[405948075,1771436726927,-1000.0,0.000422,30]
[405948076,1771436726955,-152.59,0.00042226,120]
[405948077,1771436726980,-7825.12141563,0.000423,120]
[405948078,1771436727007,-152.59,0.00042326,120]
[405948079,1771436727034,-176.97701297,0.000424,120]
[405948080,1771436727059,-210.319337,0.000424,120]
[405948081,1771436727088,-152.59,0.00042426,120]
[405948082,1771436727115,-1991.3,0.00042465,120]
[405948083,1771436727145,-1000.0,0.000425,30]
[405948084,1771436727173,-152.59,0.00042526,120]
[405948085,1771436727200,-3382.12,0.000426,120]
[405948086,1771436727225,-1158.88,0.00042602,33]
[405948087,1771436727249,-150.0,0.00042613,67]
[405948088,1771436727273,-150.0,0.00042613,67]
[405948089,1771436727297,-150.0,0.00042613,67]
[405948090,1771436727323,-152.59,0.00042626,120]
[405948091,1771436727347,-501.05,0.00042702,120]
[405948092,1771436727374,-152.59,0.00042726,120]
[405948093,1771436727401,-1000.0,0.000428,30]
[405948094,1771436727427,-152.59,0.00042826,120]
[405948095,1771436727453,-152.59,0.00042926,120]
[405948096,1771436727482,-1000.0,0.00043,120]
[405948097,1771436727507,-282.0,0.00043,120]
[405948098,1771436727534,-152.59,0.00043026,120]
[405948099,1771436727558,-1000.0,0.000431,30]
[405948100,1771436727582,-230.1011667,0.000431,120]
[405948101,1771436727606,-262.60027661,0.000431,120]
[405948102,1771436727631,-1167.28424377,0.000431,120]
[405948103,1771436727656,-555.18763738,0.000431,120]
[405948104,1771436727681,-187.11633005,0.000431,120]
[405948105,1771436727709,-152.59,0.00043126,120]
[405948106,1771436727736,-152.59,0.00043226,120]
[405948107,1771436727762,-1158.88,0.00043287,36]
[405948108,1771436727788,-152.59,0.00043326,120]
[405948109,1771436727814,-1000.0,0.000434,30]
[405948110,1771436727840,-152.59,0.00043426,120]
[405948111,1771436727864,-3382.12,0.000435,120]
[405948112,1771436727889,-34751.61211516,0.000435,120]
[405948113,1771436727915,-152.59,0.00043526,120]
[405948114,1771436727941,-152.59,0.00043626,120]
[405948115,1771436727967,-1000.0,0.000437,30]
[405948116,1771436727996,-152.59,0.00043726,120]
[405948117,1771436728022,-250.0,0.000438,90]
[405948118,1771436728046,-524.93654136,0.000438,30]
[405948119,1771436728076,-152.75662352,0.00043826,120]
[405948120,1771436728106,-1991.3,0.00043835,120]
[405948121,1771436728137,-770.462163,0.00043836,120]
[405948122,1771436728162,-770.462163,0.00043836,120]
[405948123,1771436728189,-770.462163,0.00043836,120]
[405948124,1771436728214,-770.462163,0.00043836,120]
[405948125,1771436728238,-770.462163,0.00043836,120]
[405948126,1771436728263,-770.462163,0.00043836,120]
[405948127,1771436728288,-770.462163,0.00043836,120]
[405948128,1771436728312,-770.462163,0.00043836,120]
[405948129,1771436728336,-770.462163,0.00043836,120]
[405948130,1771436728359,-770.462163,0.00043836,120]
[405948131,1771436728387,-770.462163,0.00043836,120]
[405948132,1771436728412,-770.462163,0.00043836,120]
[405948133,1771436728437,-770.462163,0.00043836,120]
[405948134,1771436728465,-770.462163,0.00043836,120]
[405948135,1771436728490,-770.462163,0.00043836,120]
[405948136,1771436728514,-770.462163,0.00043836,120]
[405948137,1771436728538,-770.462163,0.00043836,120]
[405948138,1771436728562,-770.462163,0.00043836,120]
[405948139,1771436728586,-770.462163,0.00043836,120]
[405948140,1771436728611,-770.462162,0.00043836,120]
[405948141,1771436728635,-258.96146784,0.00043836,120]
[405948142,1771436728660,-1158.88,0.00043972,39]
[405948143,1771436728685,-200.0,0.00044,120]
[405948144,1771436728710,-1000.0,0.00044,120]
[405948145,1771436728735,-1000.0,0.00044,30]
[405948146,1771436728759,-707.288626,0.00044,120]
[405948147,1771436728783,-7391.66,0.000441,30]
[405948148,1771436728807,-1822.67,0.000441,30]
[405948149,1771436728836,-4655.16,0.000441,30]
[405948150,1771436728860,-1000.0,0.000443,30]
[405948151,1771436728884,-3382.12,0.000444,120]
[405948152,1771436728907,-5387.06686887,0.000444,30]
[405948153,1771436728931,-230.1011667,0.000444,120]
[405948154,1771436728955,-262.60027661,0.000444,120]
[405948155,1771436728981,-1167.28424377,0.000444,120]
[405948156,1771436729007,-555.18763738,0.000444,120]
[405948157,1771436729032,-501.05,0.00044412,120]
[405948158,1771436729056,-1000.0,0.000446,30]
[405948159,1771436729081,-1158.88,0.00044657,42]
[405948160,1771436729106,-1500.0,0.000448,120]
[405948161,1771436729131,-218.7550895,0.00044887,30]
[405948162,1771436729155,-584.59062852,0.000449,120]
[405948163,1771436729180,-1000.0,0.000449,30]
[405948164,1771436729204,-1179.38543618,0.000449,120]
[405948165,1771436729228,-471.01790112,0.00045,120]
[405948166,1771436729253,-1000.0,0.00045,120]
[405948167,1771436729278,-1000.0,0.00045,120]
[405948168,1771436729397,-815.82810489,0.00045,120]
[405948169,1771436729424,-570.18760789,0.00045,120]
[405948170,1771436729451,-200.0,0.00045,30]
[405948171,1771436729481,-203.78680857,0.00045,120]
[405948172,1771436729508,-1989.148282,0.00045,30]
[405948173,1771436729533,-302.65193892,0.00045023,60]
[405948174,1771436729559,-1000.0,0.000452,30]
[405948175,1771436729586,-1991.3,0.00045205,120]
[405948176,1771436729611,-3382.12,0.000453,120]
[405948177,1771436729637,-1158.88,0.00045342,45]
[405948178,1771436729665,-1653.8543575,0.000454,120]
[405948179,1771436729692,-1000.0,0.000455,30]
[405948180,1771436729716,-1030.06234216,0.0004577,100]
[405948181,1771436729741,-1000.0,0.000458,30]
[405948182,1771436729766,-2000.0,0.000458,120]
[405948183,1771436729792,-230.1011667,0.000458,120]
[405948184,1771436729817,-262.60027661,0.000458,120]
[405948185,1771436729841,-1167.28424377,0.000458,120]
[405948186,1771436729866,-555.18763738,0.000458,120]
[405948187,1771436729891,-150.0,0.00046,120]
[405948188,1771436729915,-977.08721902,0.00046,30]
[405948189,1771436729939,-1158.88,0.00046027,48]
[405948190,1771436729964,-1000.0,0.000461,30]
[405948191,1771436729991,-501.05,0.00046121,120]
[405948192,1771436730016,-3382.12,0.000462,120]
[405948193,1771436730042,-7391.66,0.00046305,30]
[405948194,1771436730067,-1822.67,0.00046305,30]
[405948195,1771436730092,-4655.16,0.00046305,30]
[405948196,1771436730116,-1000.0,0.000464,30]
[405948197,1771436730143,-1991.3,0.00046575,120]
[405948198,1771436730167,-1000.0,0.000467,30]
[405948199,1771436730193,-1158.88,0.00046712,51]
[405948200,1771436730219,-2500.0,0.000468,120]
[405948201,1771436730244,-1000.0,0.00047,120]
[405948202,1771436730269,-1000.0,0.00047,30]
[405948203,1771436730293,-4390.0,0.00047,120]
[405948204,1771436730318,-1692.21,0.00047,120]
[405948205,1771436730343,-3382.12,0.000471,120]
[405948206,1771436730367,-1167.28424377,0.000471,120]
[405948207,1771436730404,-151.3637726,0.00047243,60]
[405948208,1771436730431,-1000.0,0.000473,30]
[405948209,1771436730461,-1158.88,0.00047397,54]
[405948210,1771436730488,-1444.0,0.00047562,120]
[405948211,1771436730515,-156.0,0.00047562,120]
[405948212,1771436730542,-1000.0,0.000476,30]
[405948213,1771436730567,-3000.0,0.000478,120]
[405948214,1771436730595,-501.05,0.00047831,120]
[405948215,1771436730620,-2000.0,0.000479,120]
[405948216,1771436730649,-1000.0,0.000479,30]
[405948217,1771436730677,-1991.3,0.00047945,120]
[405948218,1771436730703,-3382.12,0.00048,120]
[405948219,1771436730728,-156.67374813,0.00048,120]
[405948220,1771436730755,-1000.0,0.00048,120]
[405948221,1771436730780,-1000.0,0.00048,60]
[405948222,1771436730807,-1158.88,0.00048082,57]
[405948223,1771436730832,-1000.0,0.000482,30]
[405948224,1771436730859,-4658.4022912,0.0004826,120]
[405948225,1771436730887,-2606.93392408,0.00048398,120]
[405948226,1771436730913,-1000.0,0.000485,30]
[405948227,1771436730938,-4000.0,0.000485,120]
[405948228,1771436730964,-1167.28424377,0.000486,120]
[405948229,1771436730989,-151.3637726,0.00048738,60]
[405948230,1771436731016,-1158.88,0.00048767,60]
[405948231,1771436731046,-1000.0,0.000488,30]
[405948232,1771436731073,-3382.12,0.000489,120]
[405948233,1771436731100,-12491.20756446,0.00048965,120]
[405948234,1771436731126,-1000.0,0.00049,120]
[405948235,1771436731152,-863.0,0.00049,120]
[405948236,1771436731179,-12630.0,0.00049,120]
[405948237,1771436731206,-4500.0,0.00049,120]
[405948238,1771436731232,-2000.0,0.00049,70]
[405948239,1771436731256,-1854.0,0.00049,120]
[405948240,1771436731280,-1000.0,0.000491,30]
[405948241,1771436731305,-20000.0,0.000492,120]
[405948242,1771436731329,-250.03780464,0.00049207,60]
[405948243,1771436731355,-2032.65424167,0.00049215,30]
[405948244,1771436731381,-400.54,0.00049315,120]
[405948245,1771436731407,-1116.22,0.00049315,120]
[405948246,1771436731432,-1116.22,0.00049315,120]
[405948247,1771436731461,-1116.22,0.00049315,120]
[405948248,1771436731487,-1116.22,0.00049315,120]
[405948249,1771436731513,-1116.22,0.00049315,120]
[405948250,1771436731539,-1116.22,0.00049315,120]
[405948251,1771436731565,-1116.22,0.00049315,120]
[405948252,1771436731590,-1116.22,0.00049315,120]
[405948253,1771436731616,-1116.22,0.00049315,120]
[405948254,1771436731641,-1116.22,0.00049315,120]
[405948255,1771436731666,-1116.22,0.00049315,120]
[405948256,1771436731694,-1116.22,0.00049315,120]
[405948257,1771436731720,-1116.22,0.00049315,120]
[405948258,1771436731744,-1116.22,0.00049315,120]
[405948259,1771436731769,-1116.22,0.00049315,120]
[405948260,1771436731794,-1116.22,0.00049315,120]
[405948261,1771436731819,-1116.22,0.00049315,120]
[405948262,1771436731844,-1116.22,0.00049315,120]
[405948263,1771436731868,-1116.22,0.00049315,120]
[405948264,1771436731892,-1116.22,0.00049315,120]
[405948265,1771436731917,-1116.22,0.00049315,120]
[405948266,1771436731946,-1116.22,0.00049315,120]
[405948267,1771436731972,-1116.22,0.00049315,120]
[405948268,1771436731998,-1116.35948517,0.00049315,120]
[405948269,1771436732023,-300.0,0.00049315,120]
[405948270,1771436732050,-224.15522089,0.00049315,120]
[405948271,1771436732076,-1326.00201329,0.00049315,120]
[405948272,1771436732225,-1991.3,0.00049315,120]
[405948273,1771436732253,-2000.0,0.00049315,30]
[405948274,1771436732281,-2000.0,0.00049315,30]
[405948275,1771436732360,18671.13807951,0.00049315,30]
[405948276,1771436732789,2000.0,0.00049315,30]
[405948277,1771436806752,635.02945913,0.000156,120]
[405948291,1771437032251,-1385.50233932,0.00012497,2]
[405948292,1771437032265,-980.42902156,0.00012497,2]
[405948293,1771437032275,-500.0,0.00013273,2]
[405948294,1771437032283,-300.0,0.00013673,2]
[405948295,1771437032292,-517.69361658,0.00013699,2]
[405948297,1771437032301,-208.48269119,0.00015187,2]
[405948314,1771437038435,-91.51730881,0.00015187,2]
[405948315,1771437038445,-300.0,0.00015188,2]
[405948316,1771437038454,-500.0,0.00015188,2]
[405948317,1771437038464,-500.0,0.00015188,2]
[405948318,1771437038474,-500.0,0.00015188,2]
[405948319,1771437038483,-500.0,0.00015188,2]
[405948320,1771437038494,-500.0,0.00015188,2]
[405948321,1771437038503,-285.0,0.00015492,2]
[405948322,1771437038513,-348.94017021,0.000156,2]
[405948323,1771437038522,-500.0,0.00016175,2]
[405948324,1771437038531,-552.93471018,0.00016175,2]
[405948325,1771437038545,-504.56464955,0.00016175,2]
[405948326,1771437038559,-500.0,0.00016438,2]
[405948327,1771437038568,-500.0,0.00016438,2]
[405948328,1771437038578,-420.0,0.00016618,2]
[405948329,1771437038587,-348.94017021,0.00017375,17]
[405948330,1771437038596,-500.0,0.00018361,2]
[405948331,1771437038605,-1445.2831943,0.00018362,2]
[405948332,1771437038614,-237.7262509,0.00018362,2]
[405948333,1771437038626,-743.5267485,0.00019662,2]
[405948334,1771437038636,-500.0,0.00019999,2]
[405948335,1771437038645,-2536.24458401,0.0002,2]
[405948336,1771437038654,-373.43118265,0.0002,2]
[405948337,1771437038664,-23000.0,0.0002,2]
[405948338,1771437038673,-203.7276415,0.0002,2]
[405948339,1771437038682,-199.43505847,0.0002,2]
[405948340,1771437038691,-500.0,0.00020454,2]
[405948341,1771437038700,-1445.2831943,0.00020598,2]
[405948342,1771437038709,-237.7262509,0.00020673,2]
[405948343,1771437038719,-150.0,0.00021918,2]
[405948344,1771437038728,-150.0,0.00021918,2]
[405948345,1771437038737,-506.75382927,0.00022,2]
[405948346,1771437038746,-300.0,0.00022466,2]
[405948347,1771437038756,-200.0,0.00022466,2]
[405948348,1771437038765,-1445.2831943,0.00022833,2]
[405948349,1771437038775,-237.7262509,0.00022983,2]
[405948350,1771437038784,-450.0,0.00023014,2]
[405948351,1771437038793,-250.0,0.00023014,2]
[405948352,1771437038805,-150.27286654,0.00023562,2]
[405948353,1771437038814,-214.51353561,0.00023562,2]
[405948354,1771437038823,-614.0858201,0.00023949,2]
[405948355,1771437038833,-2030.7749364,0.00024273,2]
[405948356,1771437038842,-1445.2831943,0.00025069,2]
[405948357,1771437038851,-237.7262509,0.00025294,2]
[405948358,1771437038860,-1871.97307967,0.0002555,2]
[405948359,1771437038869,-743.5267485,0.0002659,7]
[405948360,1771437038878,-150.0,0.00027397,5]
[405948361,1771437038887,-250.0,0.00027945,5]
[405948362,1771437038896,-14946.26060059,0.0003,2]
[405948363,1771437038905,-1002.27,0.0003,30]
[405948364,1771437038914,-180.66,0.00030179,3]
[405948365,1771437038923,-542.02,0.00030423,3]
[405948366,1771437038932,-3087.64263967,0.00030433,2]
[405948367,1771437038940,-2334.00284651,0.00030484,2]
[405948368,1771437038950,-1002.27,0.000309,30]
[405948369,1771437038959,-162.95,0.00031,14]
[405948370,1771437038968,-169.303334,0.00031261,2]
[405948371,1771437038977,-361.32,0.00031549,3]
[405948372,1771437038987,-1002.27,0.000318,30]
[405948373,1771437038996,-3433.89,0.0003198,10]
[405948374,1771437039005,-257.79220096,0.00032008,2]
[405948375,1771437039015,-151.0,0.000322,14]
[405948376,1771437039024,-150.0,0.00032438,2]
[405948377,1771437039034,-743.5267485,0.00032588,7]
[405948378,1771437039044,-151.0,0.000326,17]
[405948379,1771437039054,-162.45209412,0.0003266,2]
[405948380,1771437039064,-649.80837646,0.0003266,2]
[405948381,1771437039074,-159.21909731,0.0003266,2]
[405948382,1771437039083,-636.87638926,0.0003266,2]
[405948383,1771437039093,-1432.97187583,0.0003266,2]
[405948384,1771437039102,-1462.06884704,0.0003266,2]
[405948385,1771437039112,-670.94266337,0.0003266,2]
[405948386,1771437039122,-1207.69679406,0.0003266,2]
[405948387,1771437039133,-2147.01652278,0.0003266,2]
[405948388,1771437039142,-151.0,0.000327,16]
[405948389,1771437039151,-1002.27,0.000327,120]
[405948390,1771437039161,-214.05452401,0.00032876,7]
[405948391,1771437039171,-500.0,0.00032876,19]
[405948392,1771437039180,-500.0,0.00032876,19]
[405948393,1771437039190,-209.79457529,0.00032876,7]
[405948394,1771437039199,-378.88526873,0.00032876,7]
[405948395,1771437039208,-1377.74,0.00032876,19]
[405948396,1771437039218,-281.89099397,0.00032876,19]
[405948397,1771437039227,-856.99,0.00032876,7]
[405948398,1771437039236,-500.0,0.00032876,19]
[405948399,1771437039245,-292.95675416,0.00032876,19]
[405948400,1771437039254,-305.43130004,0.00032876,19]
[405948401,1771437039264,-500.0,0.00032876,19]
[405948402,1771437039274,-999.0,0.00032876,120]
[405948403,1771437039283,-500.0,0.00032876,19]
[405948404,1771437039292,-1715.77,0.00032876,19]
[405948405,1771437039301,-500.0,0.00032876,19]
[405948406,1771437039310,-500.0,0.00032876,19]
[405948407,1771437039319,-2343.18,0.00032876,19]